[Event "WYCC 2018 O14"]
[Site "Halkidiki"]
[Date "2018.10.29"]
[Round "10"]
[White "Patrelakis, Evaggelos"]
[Black "Tadic, Stefan"]
[Result "1/2-1/2"]
[ECO "B29"]
[WhiteElo "2146"]
[BlackElo "2295"]
[Annotator "ChessBase"]
[PlyCount "112"]
[EventDate "2018.10.20"]
[EventType "swiss"]
[EventCountry "GRE"]
[SourceTitle "playchess.com"]
[Source "ChessBase"]
[SourceQuality "1"]
[TimeControl "40/5400+30:1800+30"]

1. e4 {[%emt 0:00:00]} c5 {[%emt 0:00:00]} 2. Nf3 {[%emt 0:00:00]} Nf6 {[%emt 0:00:37]} 3. Nc3 {[%emt 0:00:00]} Nc6 {[%emt 0:00:17]} 4. d4 {[%emt 0:00:01]} d5 {[%emt 0:00:47]} 5. exd5 {[%emt 0:00:09]} Nxd5 {[%emt 0:00:09]} 6. dxc5 {[%emt 0:00:07]} Nxc3 {[%emt 0:01:37]} 7. Qxd8+ {[%emt 0:00:03]} Nxd8 {[%emt 0:00:14]} 8. bxc3 {[%emt 0:00:07]} f6 {[%emt 0:01:27]} 9. Be3 {[%emt 0:05:36]} e5 {[%emt 0:02:51]} 10. Nd2 {[%emt 0:03:15]} f5 {[%emt 0:23:38]} 11. Nf3 {[%emt 0:13:09]} f4 {[%emt 0:22:54]} 12. Bb5+ {[%emt 0:04:10]} Ke7 {[%emt 0:01:01]} 13. Bd2 {[%emt 0:00:24]} Kf6 {[%emt 0:02:04]} 14. h3 {[%emt 0:05:58]} Bxc5 {[%emt 0:03:50]} 15. O-O {[%emt 0:02:46]} a6 {[%emt 0:07:30]} 16. Bd3 {[%emt 0:03:13]} Bd7 {[%emt 0:02:01]} 17. Rfe1 {[%emt 0:03:06]} Re8 {[%emt 0:00:26]} 18. c4 {[%emt 0:05:52]} Bc6 {[%emt 0:01:59]} 19. Be4 {[%emt 0:01:37]} Rc8 {[%emt 0:01:43]} 20. Bc3 {[%emt 0:01:21]} Nf7 {[%emt 0:02:49]} 21. Rad1 {[%emt 0:02:25]} Re7 {[%emt 0:02:54]} 22. h4 {[%emt 0:04:43]} g6 {[%emt 0:03:13]} 23. Bd5 {[%emt 0:07:30]} Bxd5 {[%emt 0:07:09]} 24. Rxd5 {[%emt 0:00:03]} Bd6 {[%emt 0:01:10]} 25. Nd2 {[%emt 0:21:39]} Bb8 {[%emt 0:01:20]} 26. Bb4 {[%emt 0:02:07]} Ree8 {[%emt 0:01:11]} 27. Rd7 {[%emt 0:04:46]} Rc7 {[%emt 0:01:16]} 28. Ne4+ {[%emt 0:00:18]} Kf5 {[%emt 0:01:37]} 29. Rd6 {[%emt 0:02:25]} Nxd6 {[%emt 0:04:33]} 30. Nxd6+ {[%emt 0:00:02]} Ke6 {[%emt 0:00:12]} 31. Nxe8 {[%emt 0:00:10]} Rxc4 {[%emt 0:01:04]} 32. c3 {[%emt 0:03:15]} Rc8 {[%emt 0:00:30]} 33. Ng7+ {[%emt 0:00:21]} Kf6 {[%emt 0:00:17]} 34. Rd1 {[%emt 0:00:23]} Rg8 {[%emt 0:01:52]} 35. Ne8+ {[%emt 0:00:59]} Rxe8 {[%emt 0:00:11]} 36. Rd7 {[%emt 0:00:02]} e4 {[%emt 0:00:32]} 37. Kf1 {[%emt 0:00:47]} Be5 {[%emt 0:00:58]} 38. Rxb7 {[%emt 0:03:36]} Rc8 {[%emt 0:00:30]} 39. Rb6+ {[%emt 0:01:01]} Kf5 {[%emt 0:00:09]} 40. Rxa6 {[%emt 0:00:00]} Bxc3 {[%emt 0:00:00]} 41. Ra5+ {[%emt 0:02:15]} Kf6 {[%emt 0:11:34]} 42. Rc5 {[%emt 0:03:02]} Rxc5 {[%emt 0:00:21]} 43. Bxc5 {[%emt 0:00:02]} Ke5 {[%emt 0:01:36]} 44. Ke2 {[%emt 0:01:06]} Kd5 {[%emt 0:02:16]} 45. Be7 {[%emt 0:02:44]} Be5 {[%emt 0:03:53]} 46. Bb4 {[%emt 0:07:18]} Bf6 {[%emt 0:07:51]} 47. Bd2 {[%emt 0:01:10]} f3+ {[%emt 0:00:24]} 48. gxf3 {[%emt 0:00:37]} exf3+ {[%emt 0:00:04]} 49. Kxf3 {[%emt 0:00:22]} Bxh4 {[%emt 0:00:04]} 50. Kg2 {[%emt 0:00:38]} Bxf2 {[%emt 0:00:33]} 51. Kxf2 {[%emt 0:00:25]} Kc6 {[%emt 0:00:08]} 52. Kf3 {[%emt 0:00:26]} Kb5 {[%emt 0:00:20]} 53. a3 {[%emt 0:00:17]} Ka4 {[%emt 0:00:04]} 54. Bb4 {[%emt 0:00:09]} h5 {[%emt 0:00:07]} 55. Kf4 {[%emt 0:00:13]} h4 {[%emt 0:00:07]} 56. Kg4 {[%emt 0:00:04]} g5 {[%emt 0:00:03]} 1/2-1/2

[Event "WYCC 2018 O14"]
[Site "Halkidiki"]
[Date "2018.10.29"]
[Round "10"]
[White "Galkin, Gleb"]
[Black "Ozenir, Ekin Baris"]
[Result "1-0"]
[ECO "E15"]
[WhiteElo "2134"]
[BlackElo "2293"]
[Annotator "NA"]
[PlyCount "109"]
[EventDate "2018.10.20"]
[EventType "swiss"]
[EventCountry "GRE"]
[SourceTitle "playchess.com"]
[Source "ChessBase"]
[SourceQuality "1"]
[TimeControl "40/5400+30:1800+30"]

1. d4 Nf6 2. Nf3 e6 3. c4 b6 4. g3 Bb7 5. Bg2 g6 6. O-O Bg7 7. Nc3 Ne4 8. Nxe4 Bxe4 9. Bg5 {A50: Queen's Fianchetto Defence (1 d4 Nf6 2 c4 b6)} (9. Ne5 Bxg2 10. Kxg2 c5 11. Be3 Bxe5 12. dxe5 Qc7 13. Bd2 Nc6 14. Bc3 O-O-O 15. f4 h5 16. e3 g5 {0-1 (39) Fedoseev,V (2731)-Rodshtein,M (2695) Tbilisi 2017}) 9... Qc8 10. Qd2 h6 11. Be3 Qb7 12. Rac1 d6 13. Rfd1 Nd7 14. b4 Nf6 15. Ne1 $146 ({Predecessor:} 15. d5 e5 16. Nh4 Bxg2 17. Nxg2 {½-½ (88) Bhakti,K (2256)-Sachdev,T (2413) Bhayandar 2015}) 15... Bxg2 16. Nxg2 Ng4 17. c5 Nxe3 18. Nxe3 d5 19. Ng4 h5 20. Ne5 O-O 21. cxb6 axb6 22. Nc6 Ra3 23. Rc2 Kh7 24. b5 Qa8 25. Rb1 Bh6 26. e3 Bg7 27. Rbb2 Rc8 28. Qe2 Bf6 29. h3 Kg7 30. Qf3 Qa4 31. Qg2 h4 32. g4 g5 33. Qf1 Re8 34. Qe1 Be7 35. Nxe7 Rxe7 36. Qc1 Rd3 37. Kg2 Qa3 38. Rb1 Qa8 39. Rbb2 Qd8 40. Rc6 Ra3 41. Rbc2 Ra7 42. e4 Rd7 43. e5 Ra4 44. Qe3 Qe7 45. f4 Qa3 46. R6c3 Qb4 47. f5 Qxd4 48. Qxg5+ Kf8 49. fxe6 Qe4+ 50. Kh2 Re7 51. Rf2 Qh7 52. Rxc7 Rxe6 53. Qd8+ Re8 54. Qf6 Kg8 55. Rxf7 1-0

[Event "WYCC 2018 O14"]
[Site "Halkidiki"]
[Date "2018.10.29"]
[Round "10"]
[White "Marn, Jan"]
[Black "Shinn, Jungmin"]
[Result "1/2-1/2"]
[ECO "E46"]
[WhiteElo "2125"]
[BlackElo "1659"]
[Annotator "NA"]
[PlyCount "77"]
[EventDate "2018.10.20"]
[EventType "swiss"]
[EventCountry "GRE"]
[SourceTitle "playchess.com"]
[Source "ChessBase"]
[SourceQuality "1"]
[TimeControl "40/5400+30:1800+30"]

1. d4 {[%emt 0:00:00]} e6 {[%emt 0:00:00]} 2. c4 {[%emt 0:00:00]} Nf6 {[%emt 0:00:00]} 3. Nc3 {[%emt 0:00:00]} Bb4 {[%emt 0:00:05]} 4. e3 {[%emt 0:00:08]} O-O {[%emt 0:00:55]} 5. Nge2 {[%emt 0:00:05]} d5 {[%emt 0:00:41]} 6. a3 {[%emt 0:00:09]} Bd6 {[%emt 0:01:25]} 7. c5 {[%emt 0:00:21]} Be7 {[%emt 0:00:09]} 8. Nf4 {[%emt 0:03:10]} b6 {[%emt 0:00:45]} 9. b4 {[%emt 0:00:08]} a5 {[%emt 0:00:21] E46: Nimzo-Indian: Rubinstein: 4 e3 0-0 5 Ne2 without early Bd3} 10. Bd2 {[%emt 0:00:18]} (10. Bb2 axb4 11. axb4 Rxa1 12. Bxa1 Nc6 13. b5 Nxd4 14. exd4 bxc5 15. dxc5 Bxc5 16. Bd3 d4 17. Ne4 {½-½ (44) Navara,D (2735)-Cheparinov,I (2681) Jerusalem 2015}) 10... c6 {[%emt 0:00:06]} 11. Bd3 {[%emt 0:01:22]} Nbd7 {[%emt 0:00:02]} 12. O-O {[%emt 0:01:15]} e5 $146 {[%emt 0:00:04]} ({Predecessor:} 12... Ba6 13. f3 Qc7 14. Bxa6 Rxa6 15. Qe2 Ra7 {1-0 (38) Marn,J (2063)-Bratkovic,J (2223) Ljubljana 2018}) 13. dxe5 {[%emt 0:13:16]} Nxe5 {[%emt 0:01:04]} 14. Na4 {[%emt 0:00:20]} Nxd3 {[%emt 0:17:47]} 15. Nxd3 {[%emt 0:00:10]} Ba6 {[%emt 0:00:05]} 16. Bc3 {[%emt 0:03:58]} Bxd3 {[%emt 0:01:48]} 17. Qxd3 {[%emt 0:00:04]} axb4 {[%emt 0:00:23]} 18. axb4 {[%emt 0:00:31]} bxc5 {[%emt 0:00:12]} 19. Nxc5 {[%emt 0:04:18]} Bxc5 $11 {[%emt 0:01:01]} 20. bxc5 {[%emt 0:00:35]} Ne4 {[%emt 0:00:17]} 21. Bd4 {[%emt 0:07:09]} Qe7 {[%emt 0:06:05]} 22. Qc2 {[%emt 0:01:41]} Ng5 {[%emt 0:04:41]} 23. Rfc1 {[%emt 0:23:32]} Ne6 {[%emt 0:05:49]} 24. Be5 {[%emt 0:00:44]} Rxa1 {[%emt 0:03:18]} 25. Bxa1 {[%emt 0:00:06]} Ra8 {[%emt 0:10:28]} 26. Be5 {[%emt 0:02:17]} Nxc5 {[%emt 0:04:08]} 27. Bd4 {[%emt 0:01:57]} Ne6 {[%emt 0:07:55]} 28. Qxc6 {[%emt 0:00:16]} Rd8 {[%emt 0:00:49]} 29. Bb6 {[%emt 0:01:33]} Rb8 {[%emt 0:01:18]} 30. h3 {[%emt 0:06:00]} Nd8 {[%emt 0:07:49]} 31. Bxd8 {[%emt 0:02:05]} Rxd8 {[%emt 0:00:31]} 32. Qb6 {[%emt 0:02:22]} h6 {[%emt 0:05:52]} 33. Rc7 {[%emt 0:03:02]} Qd6 {[%emt 0:02:59]} 34. Qb7 {[%emt 0:02:22]} Qf6 {[%emt 0:01:21]} 35. Re7 {[%emt 0:07:31]} d4 {[%emt 0:02:42]} 36. Qe4 {[%emt 0:00:25]} dxe3 {[%emt 0:00:43]} 37. Re8+ {[%emt 0:00:56]} Rxe8 {[%emt 0:00:04]} 38. Qxe8+ {[%emt 0:00:05]} Kh7 {[%emt 0:00:04]} 39. Qxe3 {[%emt 0:00:06]} 1/2-1/2

[Event "WYCC 2018 O14"]
[Site "Halkidiki"]
[Date "2018.10.29"]
[Round "10"]
[White "Wang, Alex"]
[Black "Cohen Revivo, Shoham"]
[Result "1/2-1/2"]
[ECO "C07"]
[WhiteElo "2076"]
[BlackElo "2289"]
[Annotator "NA"]
[PlyCount "58"]
[EventDate "2018.10.20"]
[EventType "swiss"]
[EventCountry "GRE"]
[SourceTitle "playchess.com"]
[Source "ChessBase"]
[SourceQuality "1"]
[TimeControl "40/5400+30:1800+30"]

1. e4 {[%emt 0:00:00]} e6 {[%emt 0:00:00]} 2. d4 {[%emt 0:00:00]} d5 {[%emt 0:00:00]} 3. Nd2 {[%emt 0:00:00]} c5 {[%emt 0:00:00]} 4. exd5 {[%emt 0:00:00]} Qxd5 {[%emt 0:00:00]} 5. Ngf3 {[%emt 0:00:17]} cxd4 {[%emt 0:00:00]} 6. Bc4 {[%emt 0:00:28]} Qd7 {[%emt 0:00:03]} 7. O-O {[%emt 0:13:05]} Nc6 {[%emt 0:00:07]} 8. Nb3 {[%emt 0:00:45]} Nf6 {[%emt 0:01:48]} 9. Nbxd4 {[%emt 0:00:36]} Nxd4 {[%emt 0:00:09]} 10. Nxd4 {[%emt 0:00:33]} a6 {[%emt 0:00:07]} 11. Re1 {[%emt 0:04:30]} Qc7 {[%emt 0:00:20]} 12. Bb3 {[%emt 0:01:13]} Bd6 {[%emt 0:02:01]} 13. Nf5 {[%emt 0:00:12]} Bxh2+ {[%emt 0:01:16]} 14. Kh1 {[%emt 0:00:23]} O-O {[%emt 0:00:17] [#]} 15. Nxg7 $1 {[%emt 0:00:23]} Kxg7 {[%emt 0:02:19]} (15... Rd8 $14 16. Qf3 Kxg7 17. Bh6+ Kg6) 16. Qd4 {[%emt 0:02:13]} e5 {[%emt 0:56:01]} 17. Qh4 {[%emt 0:00:23]} Ng4 {[%emt 0:00:11] LiveBook: 7 Games} 18. f3 {[%emt 0:05:21]} Qd8 {[%emt 0:01:33]} 19. Bg5 $18 {[%emt 0:08:57]} f6 {[%emt 0:01:35]} 20. fxg4 {[%emt 0:01:13]} fxg5 {[%emt 0:00:10]} 21. Qxh2 {[%emt 0:00:03]} Rf4 {[%emt 0:03:43]} 22. g3 {[%emt 0:17:09]} Rf3 {[%emt 0:06:18]} 23. Rxe5 {[%emt 0:17:50]} Qf6 {[%emt 0:03:38]} 24. Rae1 {[%emt 0:00:56]} Rf1+ {[%emt 0:02:41]} 25. Rxf1 {[%emt 0:00:05]} Qxf1+ {[%emt 0:00:11]} 26. Qg1 {[%emt 0:00:02]} Qh3+ {[%emt 0:02:15]} 27. Qh2 {[%emt 0:00:03]} Qf1+ {[%emt 0:01:05]} 28. Qg1 {[%emt 0:00:03]} Qh3+ {[%emt 0:03:04]} 29. Qh2 {[%emt 0:00:03]} Qf1+ {[%emt 0:00:07]} 1/2-1/2

[Event "WYCC 2018 O14"]
[Site "Halkidiki"]
[Date "2018.10.29"]
[Round "10"]
[White "Runets, Ivan"]
[Black "Wernberg, Hugo"]
[Result "1/2-1/2"]
[ECO "D02"]
[WhiteElo "2047"]
[BlackElo "1956"]
[Annotator "NA"]
[PlyCount "103"]
[EventDate "2018.10.20"]
[EventType "swiss"]
[EventCountry "GRE"]
[SourceTitle "playchess.com"]
[Source "ChessBase"]
[SourceQuality "1"]
[TimeControl "40/5400+30:1800+30"]

1. d4 {[%emt 0:01:06]} d5 {[%emt 0:00:00]} 2. Nf3 {[%emt 0:00:27]} Nf6 {[%emt 0:00:00]} 3. Bf4 {[%emt 0:00:39]} c5 {[%emt 0:00:13]} 4. c3 {[%emt 0:00:27]} e6 {[%emt 0:00:13]} 5. e3 {[%emt 0:00:50]} Nc6 {[%emt 0:00:25]} 6. Nbd2 {[%emt 0:01:40]} Be7 {[%emt 0:00:39]} 7. h3 {[%emt 0:07:05]} Bd6 {[%emt 0:00:13]} 8. Bxd6 {[%emt 0:02:04]} Qxd6 {[%emt 0:00:03]} 9. Be2 {[%emt 0:00:17]} O-O {[%emt 0:00:26]} 10. O-O {[%emt 0:00:09]} e5 {[%emt 0:00:23]} 11. dxe5 {[%emt 0:07:08]} Nxe5 {[%emt 0:00:11]} 12. Nxe5 {[%emt 0:00:07]} Qxe5 {[%emt 0:00:11]} 13. Nf3 {[%emt 0:01:09]} Qe7 {[%emt 0:00:10]} 14. Qa4 {[%emt 0:08:05]} Bd7 {[%emt 0:02:39]} 15. Qh4 {[%emt 0:02:32]} Bc6 {[%emt 0:05:27]} 16. Rfd1 {[%emt 0:00:49]} Rfe8 {[%emt 0:02:16]} 17. a4 {[%emt 0:11:24]} Ne4 {[%emt 0:02:25]} 18. Qxe7 {[%emt 0:01:01]} Rxe7 {[%emt 0:00:02]} 19. a5 {[%emt 0:03:55]} Rae8 {[%emt 0:10:32]} 20. Bf1 {[%emt 0:11:16]} g5 {[%emt 0:06:13]} 21. c4 {[%emt 0:10:53]} dxc4 {[%emt 0:01:11]} 22. Bxc4 {[%emt 0:00:55]} h5 {[%emt 0:01:35]} 23. Nh2 {[%emt 0:07:05]} Kg7 {[%emt 0:04:44]} 24. Bd5 {[%emt 0:01:58]} f5 {[%emt 0:07:16]} 25. Rac1 {[%emt 0:02:04]} Bxd5 {[%emt 0:06:36]} 26. Rxd5 {[%emt 0:00:06]} Kg6 {[%emt 0:01:15]} 27. Nf1 {[%emt 0:04:18]} b6 {[%emt 0:11:06]} 28. axb6 {[%emt 0:03:22]} axb6 {[%emt 0:00:33]} 29. Rcd1 {[%emt 0:01:40]} Re5 {[%emt 0:06:20]} 30. Rd7 {[%emt 0:01:23]} R5e7 {[%emt 0:02:16]} 31. R7d3 {[%emt 0:02:05]} b5 {[%emt 0:02:21]} 32. Rd5 {[%emt 0:02:02]} Re5 {[%emt 0:03:36]} 33. Rd7 {[%emt 0:00:52]} R5e7 {[%emt 0:00:54]} 34. Rxe7 {[%emt 0:00:38]} Rxe7 {[%emt 0:00:09]} 35. Rd5 {[%emt 0:01:17]} Rc7 {[%emt 0:00:56]} 36. f3 {[%emt 0:01:00]} Nf6 {[%emt 0:00:11]} 37. Rd6 {[%emt 0:00:30]} b4 {[%emt 0:03:06]} 38. Rb6 {[%emt 0:00:59]} Ra7 {[%emt 0:03:00]} 39. Nd2 {[%emt 0:01:12]} Ra1+ {[%emt 0:01:00]} 40. Kf2 {[%emt 0:00:00]} Rc1 {[%emt 0:00:00]} 41. b3 {[%emt 0:09:56]} Kg7 {[%emt 0:06:35]} 42. Nc4 {[%emt 0:00:47]} Rc2+ {[%emt 0:03:38]} 43. Kg1 {[%emt 0:01:32]} Rc1+ {[%emt 0:04:30]} 44. Kh2 {[%emt 0:03:07]} Nd5 {[%emt 0:01:17]} 45. Rd6 {[%emt 0:06:43]} Rd1 {[%emt 0:02:26]} 46. Rc6 {[%emt 0:00:24]} Rd3 {[%emt 0:01:06]} 47. e4 {[%emt 0:05:15]} fxe4 {[%emt 0:12:32]} 48. fxe4 {[%emt 0:00:12]} Ne3 {[%emt 0:03:57]} 49. Rc7+ {[%emt 0:06:50]} Kf6 {[%emt 0:01:35]} 50. Rc6+ {[%emt 0:01:12]} Kg7 {[%emt 0:00:30]} 51. Rc7+ {[%emt 0:01:53]} Kf6 {[%emt 0:00:17]} 52. Rc6+ {[%emt 0:00:34] Ke5} 1/2-1/2

[Event "WYCC 2018 O14"]
[Site "Halkidiki"]
[Date "2018.10.29"]
[Round "10"]
[White "Karadzhov, Ivan"]
[Black "Bolognese, Leonardo"]
[Result "0-1"]
[ECO "D45"]
[WhiteElo "2040"]
[BlackElo "1947"]
[Annotator "NA"]
[PlyCount "144"]
[EventDate "2018.10.20"]
[EventType "swiss"]
[EventCountry "GRE"]
[SourceTitle "playchess.com"]
[Source "ChessBase"]
[SourceQuality "1"]
[TimeControl "40/5400+30:1800+30"]

1. d4 {[%emt 0:00:00]} d5 {[%emt 0:00:00]} 2. c4 {[%emt 0:00:00]} e6 {[%emt 0:00:00]} 3. Nc3 {[%emt 0:00:15]} c6 {[%emt 0:00:09]} 4. e3 {[%emt 0:01:11]} Nf6 {[%emt 0:00:15]} 5. Nf3 {[%emt 0:00:18]} Nbd7 {[%emt 0:00:29]} 6. b3 {[%emt 0:00:56]} Bb4 {[%emt 0:03:00]} 7. Bd2 {[%emt 0:00:42]} O-O {[%emt 0:04:53]} 8. Bd3 {[%emt 0:00:31]} b6 {[%emt 0:00:33]} 9. O-O {[%emt 0:00:44]} Bd6 {[%emt 0:08:13]} 10. e4 {[%emt 0:16:45]} dxe4 {[%emt 0:01:02]} 11. Nxe4 {[%emt 0:00:32]} Nxe4 {[%emt 0:00:06]} 12. Bxe4 {[%emt 0:00:09]} Bb7 {[%emt 0:00:28]} 13. Qc2 {[%emt 0:08:38]} h6 {[%emt 0:07:55]} 14. b4 {[%emt 0:09:59]} Nf6 {[%emt 0:05:45]} 15. c5 {[%emt 0:07:18]} Bc7 {[%emt 0:01:40]} 16. a4 {[%emt 0:04:24]} Nxe4 {[%emt 0:12:09]} 17. Qxe4 {[%emt 0:00:19]} Ba6 {[%emt 0:00:04]} 18. Rfc1 {[%emt 0:03:27]} Rb8 {[%emt 0:01:05]} 19. cxb6 {[%emt 0:04:57]} axb6 {[%emt 0:01:32]} 20. Qxc6 {[%emt 0:00:59]} Bd6 {[%emt 0:00:26]} 21. Qc3 {[%emt 0:06:10]} Bb7 {[%emt 0:06:33]} 22. Ne5 {[%emt 0:08:58]} Rc8 {[%emt 0:13:26]} 23. Qe3 {[%emt 0:01:23]} Qh4 {[%emt 0:03:54]} 24. f4 {[%emt 0:04:03]} Bxe5 {[%emt 0:06:27]} 25. dxe5 {[%emt 0:02:07]} Qg4 {[%emt 0:01:15]} 26. Qf2 {[%emt 0:01:07]} Rcd8 {[%emt 0:01:12]} 27. Be3 {[%emt 0:01:36]} Rd3 {[%emt 0:03:40]} 28. Re1 {[%emt 0:04:17]} Rfd8 {[%emt 0:07:20]} 29. h3 {[%emt 0:06:23]} Qg6 {[%emt 0:01:40]} 30. b5 {[%emt 0:04:16]} Rc3 {[%emt 0:03:45]} 31. Ra2 {[%emt 0:00:50]} Rdd3 {[%emt 0:00:52]} 32. Ree2 {[%emt 0:01:36]} Rxe3 {[%emt 0:01:07]} 33. Rxe3 {[%emt 0:00:20]} Rxe3 {[%emt 0:00:06]} 34. Kh2 {[%emt 0:00:55]} Qe4 {[%emt 0:02:07]} 35. Rd2 {[%emt 0:00:39]} Rd3 {[%emt 0:00:37]} 36. Rxd3 {[%emt 0:00:29]} Qxd3 {[%emt 0:00:10]} 37. Qxb6 {[%emt 0:00:27]} Qe4 {[%emt 0:00:23]} 38. Qd8+ {[%emt 0:00:26]} Kh7 {[%emt 0:00:18]} 39. Qd2 {[%emt 0:00:06]} Qxa4 {[%emt 0:00:20]} 40. Qd3+ {[%emt 0:00:00]} Qe4 {[%emt 0:00:00]} 41. Qd2 {[%emt 0:02:08]} Qd5 {[%emt 0:03:41]} 42. Qc2+ {[%emt 0:00:22]} g6 {[%emt 0:00:12]} 43. b6 {[%emt 0:00:33]} Qd4 {[%emt 0:01:22]} 44. Qc7 {[%emt 0:03:09]} Qxf4+ {[%emt 0:00:42]} 45. Kg1 {[%emt 0:00:08]} Bd5 {[%emt 0:03:55]} 46. b7 {[%emt 0:00:38]} Qe3+ {[%emt 0:00:29]} 47. Kh2 {[%emt 0:00:17]} Qf2 {[%emt 0:00:25]} 48. Qxf7+ {[%emt 0:00:29]} Qxf7 {[%emt 0:00:07]} 49. b8=Q {[%emt 0:00:07]} Qb7 {[%emt 0:00:27]} 50. Qe8 {[%emt 0:01:50]} Bxg2 {[%emt 0:00:14]} 51. Qxe6 {[%emt 0:00:07]} Bd5 {[%emt 0:00:13]} 52. Qg4 {[%emt 0:01:04]} Qb2+ {[%emt 0:00:54]} 53. Kg1 {[%emt 0:00:12]} Qb1+ {[%emt 0:00:52]} 54. Kf2 {[%emt 0:00:16]} Qf5+ {[%emt 0:00:19]} 55. Qxf5 {[%emt 0:00:40]} gxf5 {[%emt 0:00:06]} 56. Kg3 {[%emt 0:00:08]} Kg6 {[%emt 0:01:03]} 57. Kf4 {[%emt 0:00:50]} Be4 {[%emt 0:00:14]} 58. h4 {[%emt 0:00:43]} Kf7 {[%emt 0:00:12]} 59. Kg3 {[%emt 0:00:17]} Ke6 {[%emt 0:00:07]} 60. Kf4 {[%emt 0:00:06]} Bb1 {[%emt 0:00:08]} 61. h5 {[%emt 0:00:18]} Bc2 {[%emt 0:00:05]} 62. Kf3 {[%emt 0:00:11]} Kxe5 {[%emt 0:00:06]} 63. Kg3 {[%emt 0:00:15]} Ke4 {[%emt 0:00:13]} 64. Kf2 {[%emt 0:00:07]} Kf4 {[%emt 0:00:17]} 65. Kg2 {[%emt 0:00:06]} Ke3 {[%emt 0:00:07]} 66. Kg3 {[%emt 0:00:10]} f4+ {[%emt 0:00:13]} 67. Kg2 {[%emt 0:00:04]} f3+ {[%emt 0:00:18]} 68. Kf1 {[%emt 0:00:12]} Bd3+ {[%emt 0:00:26]} 69. Kg1 {[%emt 0:00:08]} f2+ {[%emt 0:00:09]} 70. Kg2 {[%emt 0:00:06]} f1=Q+ {[%emt 0:00:08]} 71. Kh2 {[%emt 0:00:06]} Qf2+ {[%emt 0:00:14]} 72. Kh1 {[%emt 0:00:12]} Be4# {[%emt 0:00:06]} 0-1

[Event "WYCC 2018 O14"]
[Site "Halkidiki"]
[Date "2018.10.29"]
[Round "10"]
[White "Kasioumis, Vasilios"]
[Black "Tanriverdi, Enes"]
[Result "1-0"]
[ECO "B48"]
[WhiteElo "2038"]
[BlackElo "2317"]
[Annotator "NA"]
[PlyCount "87"]
[EventDate "2018.10.20"]
[EventType "swiss"]
[EventCountry "GRE"]
[SourceTitle "playchess.com"]
[Source "ChessBase"]
[SourceQuality "1"]
[TimeControl "40/5400+30:1800+30"]

1. e4 {[%emt 0:00:00]} c5 {[%emt 0:00:00]} 2. Nf3 {[%emt 0:00:00]} e6 {[%emt 0:00:00]} 3. d4 {[%emt 0:00:00]} cxd4 {[%emt 0:00:00]} 4. Nxd4 {[%emt 0:00:00]} Nc6 {[%emt 0:00:00]} 5. Nc3 {[%emt 0:00:00]} Qc7 {[%emt 0:00:00]} 6. Be3 {[%emt 0:00:00]} a6 {[%emt 0:00:05]} 7. Qf3 {[%emt 0:00:00]} Bd6 {[%emt 0:00:07]} 8. O-O-O {[%emt 0:00:04]} Be5 {[%emt 0:00:04]} 9. g3 {[%emt 0:00:06]} b5 {[%emt 0:00:05]} 10. Qe2 {[%emt 0:03:46]} Bb7 {[%emt 0:00:12]} 11. Qd2 {[%emt 0:04:03]} b4 {[%emt 0:42:13]} 12. Na4 {[%emt 0:04:57]} Nf6 {[%emt 0:00:11]} 13. Nc5 $2 {[%emt 0:10:20] [#]} (13. Bg2 $11 {and White is okay.}) 13... Qa5 $18 {[%emt 0:04:43]} (13... Bxd4 $1 $19 {avoids the disaster.} 14. Bxd4 Nxd4 15. Nxb7 (15. Qxd4 $2 Rc8 $19) 15... e5) 14. Nxb7 {[%emt 0:09:38]} Qxa2 {[%emt 0:00:06]} 15. Qd3 {[%emt 0:00:05]} Qa1+ {[%emt 0:05:18]} 16. Kd2 {[%emt 0:00:05]} Qxb2 {[%emt 0:00:06]} 17. Nxc6 {[%emt 0:09:00]} dxc6 {[%emt 0:04:44]} 18. Bc5 {[%emt 0:05:46]} Nd7 {[%emt 0:14:30]} 19. Bd6 {[%emt 0:11:40]} Ra7 {[%emt 0:02:24]} 20. Bxe5 {[%emt 0:04:26]} Qxe5 {[%emt 0:00:18]} 21. Nd6+ {[%emt 0:00:07]} Ke7 {[%emt 0:00:10]} 22. Ke2 {[%emt 0:01:58]} Nc5 {[%emt 0:01:21]} 23. Qc4 {[%emt 0:00:13]} Na4 {[%emt 0:16:14]} 24. Rd2 {[%emt 0:07:57]} Nc3+ {[%emt 0:04:49]} 25. Ke1 {[%emt 0:00:09]} Rd8 {[%emt 0:01:55]} 26. f4 {[%emt 0:03:14]} Qa5 {[%emt 0:00:03]} 27. e5 {[%emt 0:02:02]} Nb1 {[%emt 0:00:50]} 28. Rd3 {[%emt 0:06:10]} b3+ {[%emt 0:00:47]} 29. Kf2 {[%emt 0:00:23]} Nd2 {[%emt 0:01:29]} 30. Qxc6 {[%emt 0:03:54]} Rc7 {[%emt 0:01:04]} 31. Nb7 {[%emt 0:01:13]} Rxc6 {[%emt 0:00:51]} 32. Nxa5 {[%emt 0:00:08]} Rxc2 {[%emt 0:00:06]} 33. Rxd8 {[%emt 0:01:59]} Kxd8 {[%emt 0:00:35]} 34. Bd3 {[%emt 0:00:34]} Ra2 {[%emt 0:00:48]} 35. Ke3 {[%emt 0:00:08]} b2 {[%emt 0:00:34]} 36. Rd1 {[%emt 0:00:42]} Ra3 {[%emt 0:00:40]} 37. Kxd2 {[%emt 0:00:17]} Rxa5 {[%emt 0:00:01]} 38. Kc2 {[%emt 0:00:30]} Ra1 {[%emt 0:00:05]} 39. Rb1 {[%emt 0:00:50]} g6 {[%emt 0:00:15]} 40. Kxb2 {[%emt 0:00:00]} Ra5 {[%emt 0:00:00]} 41. Ra1 {[%emt 0:00:51]} Rd5 {[%emt 0:00:07]} 42. Kc3 {[%emt 0:00:07]} a5 {[%emt 0:00:02]} 43. Bc4 {[%emt 0:00:09]} Rc5 {[%emt 0:00:14]} 44. Kd4 {[%emt 0:00:05]} 1-0